bitfinex-derivatives/quotes_BTCF0:USTF0_20250814
["timestamp","ask_amount","ask_price","bid_price","bid_amount"]
[1755161076775,0.6121623,121820.0,121810.0,0.1478985]
[1755161076966,0.54969524,121820.0,121810.0,0.72979747]
[1755161077774,0.54969524,121820.0,121810.0,0.74263072]
[1755161078873,0.55069524,121820.0,121810.0,0.74263072]
[1755161079274,0.56753008,121820.0,121810.0,0.75546382]
[1755161079674,0.63404744,121820.0,121810.0,0.75546382]
[1755161081177,0.71609924,121820.0,121810.0,0.75546382]
[1755161081378,0.71609924,121820.0,121810.0,0.27873485]
[1755161081979,0.71609924,121820.0,121810.0,0.27873489]
[1755161083281,0.71609924,121820.0,121810.0,0.27873477]
[1755161084280,0.71610129,121820.0,121810.0,0.27873477]
[1755161089576,0.71610129,121820.0,121810.0,0.12614477]
[1755161089884,0.71610129,121820.0,121810.0,0.16092477]
[1755161090079,0.71610129,121820.0,121810.0,0.18861477]
[1755161090281,0.71610129,121820.0,121810.0,0.23603477]
[1755161092788,0.71610129,121820.0,121810.0,0.27873477]
[1755161093989,0.71610129,121820.0,121810.0,0.26590175]
[1755161094691,0.63404949,121820.0,121810.0,0.26590175]
[1755161094892,0.71610139,121820.0,121810.0,0.26590175]
[1755161095899,0.71610139,121820.0,121810.0,0.27830288]
[1755161097496,0.71610139,121820.0,121810.0,0.22320175]
[1755161099392,0.71610139,121820.0,121790.0,0.1641373]
[1755161099393,0.0820649,121800.0,121790.0,0.1641373]
[1755161099596,0.0820649,121800.0,121780.0,0.6851343]
[1755161099597,0.2470616,121790.0,121780.0,0.6851343]
[1755161099792,0.2470616,121790.0,121780.0,0.78559751]
[1755161099793,0.16499,121790.0,121780.0,0.78559751]
[1755161101194,0.2470621,121790.0,121780.0,0.78559751]
[1755161101695,0.18457652,121790.0,121780.0,0.78559751]
[1755161102291,0.18457652,121790.0,121780.0,0.78759751]
[1755161102499,0.18457652,121790.0,121780.0,0.78959751]
[1755161102797,0.18457652,121790.0,121780.0,1.26632648]
[1755161102995,0.18457652,121790.0,121780.0,1.26632424]
[1755161103195,0.01958652,121790.0,121780.0,1.26632424]
[1755161103796,0.01958652,121790.0,121780.0,1.43054823]
[1755161104402,0.04025,121810.0,121800.0,0.0820654]
[1755161104607,0.09290118,121810.0,121800.0,1.09816534]
[1755161104999,0.01958118,121810.0,121800.0,1.09816534]
[1755161105302,0.01958118,121810.0,121800.0,1.93569431]
[1755161105602,0.06651736,121820.0,121810.0,0.248229]
[1755161105802,0.2557495,121840.0,121830.0,0.0820455]
[1755161105995,0.2753332,121840.0,121830.0,0.26061647]
[1755161106503,0.3486532,121840.0,121830.0,0.26061647]
[1755161107698,0.1845737,121840.0,121830.0,1.09814544]
[1755161108296,0.21495476,121840.0,121830.0,1.08574447]
[1755161109396,0.29699326,121840.0,121830.0,1.08574447]
[1755161110201,0.29699326,121840.0,121830.0,0.72494447]
[1755161110604,0.36424129,121840.0,121830.0,1.08574447]
[1755161110803,0.36424129,121840.0,121830.0,0.72494447]
[1755161111196,0.36424129,121840.0,121830.0,0.2482155]
[1755161111704,0.34465759,121840.0,121830.0,0.2482155]
[1755161112106,0.34465759,121840.0,121830.0,0.16617]
[1755161112797,0.70545759,121840.0,121830.0,0.127]
[1755161113097,0.70545759,121840.0,121830.0,0.2482158]
[1755161114007,0.34465759,121840.0,121830.0,0.2482158]
[1755161114198,0.70545759,121840.0,121830.0,0.2482158]
[1755161114504,0.34465759,121840.0,121830.0,0.2482158]
[1755161116303,0.70545759,121840.0,121830.0,0.2482158]
[1755161116701,0.34465759,121840.0,121830.0,0.2482158]
[1755161117004,0.34465759,121840.0,121830.0,0.2090458]
[1755161117197,0.34465759,121840.0,121830.0,0.2482158]
[1755161118305,0.26261909,121840.0,121830.0,0.6090158]
[1755161118514,0.26261909,121840.0,121830.0,0.72494477]
[1755161118816,0.26261909,121840.0,121830.0,1.08574477]
[1755161120407,0.26261909,121840.0,121830.0,1.09809714]
[1755161122010,0.26261909,121840.0,121830.0,1.08574477]
[1755161123106,0.34465819,121840.0,121830.0,1.08574477]
[1755161126812,0.26261909,121840.0,121830.0,1.08574477]
[1755161127915,0.13580909,121840.0,121830.0,1.08574477]
[1755161128110,0.09762909,121840.0,121830.0,1.08574477]
[1755161128311,0.2433393,121840.0,121830.0,0.6090158]
[1755161128510,0.2433393,121840.0,121830.0,0.5689058]
[1755161128711,0.2433393,121840.0,121830.0,0.6067058]
[1755161129508,0.33834663,121840.0,121830.0,0.6067058]
[1755161131817,0.33834663,121840.0,121830.0,0.2459058]
[1755161132215,0.35776853,121840.0,121830.0,0.2459058]
[1755161132420,0.71856853,121840.0,121830.0,0.2459058]
[1755161132620,0.35776853,121840.0,121830.0,0.2459058]
[1755161133214,0.35776853,121840.0,121830.0,0.25829957]
[1755161135622,0.35776853,121840.0,121830.0,0.01239377]
[1755161136522,0.35776853,121840.0,121830.0,0.19806987]
[1755161136822,0.35776853,121840.0,121830.0,0.11602377]
[1755161137116,0.35776853,121840.0,121830.0,0.11604291]
[1755161137721,0.71856853,121840.0,121830.0,0.11604291]
[1755161139174,0.71856853,121840.0,121830.0,0.19808891]
[1755161139518,0.27572923,121840.0,121830.0,0.21970891]
[1755161139822,0.27572923,121840.0,121830.0,1.09503788]
[1755161140826,0.35776863,121840.0,121830.0,1.0950357]
[1755161141922,0.35776863,121840.0,121830.0,0.17546073]
[1755161142221,0.71856863,121840.0,121830.0,0.17546073]
[1755161143127,0.71856863,121840.0,121830.0,0.25750673]
[1755161143620,0.35776863,121840.0,121830.0,0.25750673]
[1755161144525,0.35776863,121840.0,121830.0,0.17546073]
[1755161144824,0.71856863,121840.0,121830.0,0.16305]
[1755161145621,0.71856863,121840.0,121830.0,0.1754593]
[1755161145926,0.71856863,121840.0,121830.0,0.2575053]
[1755161146123,0.35776863,121840.0,121830.0,0.2575053]
[1755161146919,0.35776863,121840.0,121830.0,0.73423427]
[1755161147826,0.35776863,121840.0,121830.0,0.2575053]
[1755161148327,0.35776863,121840.0,121830.0,0.73423427]
[1755161148516,0.35776863,121840.0,121830.0,0.72182497]
[1755161150730,0.26178863,121840.0,121830.0,0.72182497]
[1755161150929,0.35776863,121840.0,121830.0,0.72182497]
[1755161152326,0.29401863,121840.0,121830.0,0.72182497]
[1755161152536,0.11442923,121840.0,121830.0,1.08262497]
[1755161154726,0.19646763,121840.0,121830.0,1.00057897]
[1755161154929,0.36233763,121840.0,121830.0,1.00057897]
[1755161155624,0.36233763,121840.0,121830.0,0.52385]
[1755161155928,0.36233763,121840.0,121830.0,0.16305]
[1755161156333,0.36233763,121840.0,121830.0,0.52385]
[1755161157321,0.36233763,121840.0,121830.0,0.16305]
[1755161157522,0.36233763,121840.0,121830.0,0.52385]
[1755161157831,0.36233763,121840.0,121830.0,0.16305]
[1755161158034,0.36233763,121840.0,121830.0,0.52385]
[1755161158234,0.36233763,121840.0,121830.0,0.16305]
[1755161158530,0.36233763,121840.0,121830.0,0.17547246]
[1755161158933,0.36233763,121840.0,121830.0,0.53627246]
[1755161160433,0.36233763,121840.0,121830.0,0.17547246]
[1755161160932,0.36233763,121840.0,121830.0,0.17547221]
[1755161161834,0.36233763,121840.0,121830.0,0.53627221]
[1755161162023,0.36233773,121840.0,121830.0,0.61831741]
[1755161162224,0.36233773,121840.0,121830.0,0.25751741]
[1755161162432,0.36233773,121840.0,121830.0,0.61831741]
[1755161162633,0.28029923,121840.0,121830.0,0.61831741]
[1755161162827,0.36233773,121840.0,121830.0,0.61831741]
[1755161164642,0.36233773,121840.0,121830.0,1.09504638]
[1755161166032,0.36233773,121840.0,121830.0,1.01300118]
[1755161167336,0.36233773,121840.0,121830.0,1.09504398]
[1755161167636,0.36233773,121840.0,121830.0,1.01300118]
[1755161167932,0.36233773,121840.0,121830.0,0.65220118]
[1755161168733,0.36233773,121840.0,121830.0,1.01300118]
[1755161168934,0.36233773,121840.0,121830.0,1.09504438]
[1755161170733,0.36233773,121840.0,121830.0,1.01300118]
[1755161171436,0.36233773,121840.0,121830.0,1.09504388]
[1755161172936,0.36233773,121840.0,121830.0,1.01300118]
[1755161175134,0.36233773,121840.0,121830.0,0.65220118]
[1755161176439,0.36233773,121840.0,121830.0,1.01300118]
[1755161177441,0.36233773,121840.0,121830.0,0.65220118]
[1755161177643,0.36233773,121840.0,121830.0,0.65219642]
[1755161178142,0.36233773,121840.0,121830.0,1.01299642]
[1755161178344,0.36233773,121840.0,121830.0,1.09503852]
[1755161178646,0.33719773,121840.0,121830.0,1.09503852]
[1755161178944,0.33719773,121840.0,121830.0,1.01299642]
[1755161179444,0.36233773,121840.0,121830.0,1.01299642]
[1755161179644,0.36233773,121840.0,121830.0,0.65219642]
[1755161179845,0.36233773,121840.0,121830.0,0.17546745]
[1755161180249,0.36233773,121840.0,121830.0,0.05807745]
[1755161180746,0.36233773,121840.0,121830.0,0.11502745]
[1755161181352,0.36233773,121840.0,121830.0,0.15390745]
[1755161181545,0.36233773,121840.0,121830.0,0.17642745]
[1755161182745,0.36233773,121840.0,121830.0,0.01241745]
[1755161182746,0.72313773,121840.0,121830.0,0.01241745]
[1755161182949,1.1998667,121840.0,121830.0,0.01241745]
[1755161183147,0.0820426,121830.0,121820.0,0.3608]
[1755161183353,0.1671945,121830.0,121820.0,0.37321839]
[1755161183547,0.2677445,121830.0,121820.0,0.13558839]
[1755161183747,0.2677445,121830.0,121820.0,0.17446839]
[1755161184357,0.2677445,121830.0,121820.0,0.17546839]
[1755161184851,0.2081243,121830.0,121820.0,1.09504656]
[1755161185149,0.2645843,121830.0,121820.0,1.09504656]
[1755161185656,0.1671943,121830.0,121820.0,1.09504656]
[1755161185861,0.1671943,121830.0,121820.0,1.09604656]
[1755161186161,0.1277143,121830.0,121820.0,1.09604656]
[1755161186360,0.0194219,121830.0,121820.0,1.09604656]
[1755161186546,0.0194219,121830.0,121820.0,1.25868266]
[1755161186750,0.09500733,121840.0,121830.0,0.2404525]
[1755161186952,0.1014464,121840.0,121830.0,1.09039986]
[1755161187150,0.1665353,121840.0,121830.0,1.00835736]
[1755161187558,0.2068953,121840.0,121830.0,1.00835736]
[1755161187758,0.2390653,121840.0,121830.0,1.00835736]
[1755161187954,0.2390653,121840.0,121830.0,0.53162839]
[1755161188161,0.2390653,121840.0,121830.0,1.00835736]
[1755161188662,0.28024653,121840.0,121830.0,1.00835736]
[1755161188863,0.20771653,121840.0,121830.0,1.00835736]
[1755161189157,0.24807653,121840.0,121830.0,1.00835736]
[1755161189364,0.24807653,121840.0,121830.0,1.00839879]
[1755161189556,0.28024653,121840.0,121830.0,1.00839879]
[1755161189860,0.34502653,121840.0,121830.0,1.00839879]
[1755161190063,0.34502653,121840.0,121830.0,1.09044119]
[1755161190463,0.34502653,121840.0,121830.0,0.61371222]
[1755161190764,0.31285653,121840.0,121830.0,1.09044119]
[1755161191164,0.31285653,121840.0,121830.0,1.07798137]
[1755161192165,0.34502653,121840.0,121830.0,0.99593897]
[1755161192466,0.36931653,121840.0,121830.0,0.99593897]
[1755161192667,0.36931653,121840.0,121830.0,0.51921]
[1755161193966,0.36931653,121840.0,121830.0,0.53166808]
[1755161198467,0.36931653,121840.0,121830.0,0.51921]
[1755161198863,0.36931653,121840.0,121830.0,0.15841]
[1755161202165,0.36931653,121840.0,121830.0,0.08812]
[1755161202368,0.36931653,121840.0,121830.0,0.06404]
[1755161203371,0.36931653,121840.0,121830.0,0.15841]
[1755161203575,0.2436422,121830.0,121820.0,0.06404]
[1755161203779,0.2436422,121830.0,121820.0,0.15841]
[1755161204668,0.2436422,121830.0,121820.0,0.99593897]
[1755161205272,0.2436422,121830.0,121820.0,0.99793897]
[1755161206873,0.2436422,121830.0,121820.0,0.52121]
[1755161207173,0.2436422,121830.0,121820.0,0.99793897]
[1755161207367,0.2436422,121830.0,121820.0,0.52121]
[1755161207572,0.26316986,121830.0,121820.0,0.16041]
[1755161208471,0.26316986,121830.0,121820.0,0.17286932]
[1755161209677,0.26316986,121830.0,121820.0,0.16041]
[1755161209974,0.26316986,121830.0,121820.0,0.17286781]
[1755161210162,0.26316986,121830.0,121820.0,0.01445781]
[1755161210567,0.26316986,121830.0,121820.0,0.13418781]
[1755161210869,0.26316986,121830.0,121820.0,0.17286781]
[1755161211670,0.2436422,121830.0,121820.0,0.17286781]
[1755161211870,0.2436422,121830.0,121820.0,0.53366781]
[1755161212071,0.2436422,121830.0,121820.0,1.01039678]
[1755161212669,0.2436422,121830.0,121820.0,0.5336679]
[1755161213472,0.10514,121830.0,121820.0,1.09244567]
[1755161214180,0.2192824,121830.0,121820.0,1.09244567]
[1755161214372,0.13724,121830.0,121820.0,1.09244567]
[1755161214573,0.29463583,121840.0,121820.0,1.22493127]
[1755161214771,0.4470233,121840.0,121830.0,0.63335897]
[1755161214973,0.4470233,121840.0,121830.0,0.64581687]
[1755161215373,0.4470233,121840.0,121830.0,0.72785927]
[1755161215575,0.4470233,121840.0,121830.0,0.72786302]
[1755161215773,0.4470233,121840.0,121830.0,0.64582062]
[1755161216074,0.34545673,121840.0,121830.0,0.72786292]
[1755161216275,0.36498759,121840.0,121830.0,0.72786292]
[1755161217081,0.36498759,121840.0,121830.0,0.64582062]
[1755161217280,0.36498759,121840.0,121830.0,0.72786282]
[1755161217474,0.36498759,121840.0,121830.0,0.64582062]
[1755161218582,0.30369759,121840.0,121830.0,0.58334062]
[1755161218782,0.36498759,121840.0,121830.0,0.16909165]
[1755161219178,0.36498759,121840.0,121830.0,0.64582062]
[1755161220882,0.36498759,121840.0,121830.0,0.64582173]
[1755161221489,0.36498873,121840.0,121830.0,0.64582173]
[1755161222273,0.36498873,121840.0,121830.0,0.16909276]
[1755161223586,0.72578873,121840.0,121830.0,0.16909276]
[1755161223779,0.72578873,121840.0,121830.0,0.01246276]
[1755161226291,0.72578873,121840.0,121830.0,0.06103276]
[1755161226889,0.72578873,121840.0,121830.0,0.08683276]
[1755161227092,0.36498873,121840.0,121830.0,0.11010276]
[1755161227283,0.36498873,121840.0,121830.0,0.16909276]
[1755161233091,0.36498873,121840.0,121830.0,0.52989276]
[1755161234595,0.36498873,121840.0,121830.0,0.16909276]
[1755161235800,0.36498873,121840.0,121830.0,0.52989276]
[1755161237206,0.36498873,121840.0,121830.0,0.52990542]
[1755161237700,0.36498873,121840.0,121830.0,0.61194822]
[1755161238002,0.27195813,121840.0,121830.0,1.08867719]
[1755161238192,0.20783813,121840.0,121830.0,1.08867719]
[1755161240599,0.23332813,121840.0,121830.0,0.52990542]
[1755161240802,0.36498813,121840.0,121830.0,0.52990542]
[1755161241005,0.36498813,121840.0,121830.0,0.52990329]
[1755161242297,0.36498813,121840.0,121830.0,0.61194619]
[1755161242496,0.33985833,121840.0,121830.0,1.08867516]
[1755161243113,0.30775833,121840.0,121830.0,0.61194619]
[1755161243313,0.30775833,121840.0,121830.0,1.08867516]
[1755161243613,0.18709213,121840.0,121830.0,1.08867516]
[1755161243808,0.26912753,121840.0,121830.0,1.08867516]
[1755161244003,0.12580213,121840.0,121830.0,1.08867516]
[1755161244208,0.0650889,121840.0,121830.0,1.08867516]
[1755161244405,0.380508,121860.0,121850.0,0.06357]
[1755161244711,0.34138032,121860.0,121850.0,0.63494897]
[1755161245412,0.31801032,121860.0,121850.0,0.63494897]
[1755161245614,0.31901032,121860.0,121850.0,0.63494897]
[1755161245913,0.34438032,121860.0,121850.0,0.63494897]
[1755161246713,0.29666614,121860.0,121850.0,1.09032951]
[1755161246913,0.29666544,121860.0,121850.0,1.09032951]
[1755161247406,0.29666544,121860.0,121850.0,1.00830071]
[1755161247914,0.3614812,121860.0,121850.0,1.00830071]
[1755161248115,0.1236591,121860.0,121850.0,1.09032951]
[1755161248515,0.1236591,121860.0,121850.0,1.07777777]
[1755161249416,0.2056811,121860.0,121850.0,1.07777777]
[1755161249616,0.1236591,121860.0,121850.0,1.07777777]
[1755161250419,0.2056811,121860.0,121850.0,1.07777777]
[1755161250620,0.2752611,121860.0,121850.0,0.51902]
[1755161250916,0.3614811,121860.0,121850.0,0.51902]
[1755161252322,0.1865091,121860.0,121850.0,1.07777777]
[1755161253216,0.2685307,121860.0,121850.0,1.07777777]
[1755161253516,0.1865091,121860.0,121850.0,1.07777777]
[1755161254019,0.1864698,121860.0,121850.0,1.07777777]
[1755161254319,0.16697918,121860.0,121850.0,1.07777777]
[1755161258924,0.12855918,121860.0,121850.0,1.07777777]
[1755161259425,0.10412918,121860.0,121850.0,1.07777777]
[1755161261028,0.10412918,121860.0,121850.0,1.09029849]
[1755161262326,0.10412918,121860.0,121850.0,1.07777777]
[1755161262525,0.10412918,121860.0,121850.0,1.09029836]
[1755161263438,0.34195138,121860.0,121850.0,1.00826956]
[1755161263628,0.3614111,121860.0,121850.0,1.00826956]
[1755161263832,0.3614111,121860.0,121850.0,1.09029846]
[1755161264129,0.2793889,121860.0,121850.0,1.09029846]
[1755161264329,0.3614111,121860.0,121850.0,1.09029846]
[1755161264529,0.3614111,121860.0,121850.0,1.00826956]
[1755161265029,0.3614111,121860.0,121850.0,1.09029846]
[1755161265329,0.3614111,121860.0,121850.0,0.61356949]
[1755161265829,0.2793889,121860.0,121850.0,0.61356949]
[1755161266631,0.2560189,121860.0,121850.0,1.09029846]
[1755161267028,0.23655918,121860.0,121850.0,1.07777787]
[1755161267726,0.31858158,121860.0,121850.0,1.07777787]
[1755161267924,0.33804789,121860.0,121850.0,1.07777787]
[1755161268121,0.36141789,121860.0,121850.0,1.07777787]
[1755161268322,0.36141789,121860.0,121850.0,0.6010489]
[1755161269427,0.27939549,121860.0,121850.0,0.6010489]
[1755161269627,0.27939549,121860.0,121850.0,1.07777787]
[1755161270124,0.27939549,121860.0,121850.0,1.09030876]
[1755161270435,0.36141779,121860.0,121850.0,1.09030876]
[1755161270833,0.36141779,121860.0,121850.0,1.07777787]
[1755161271132,0.36141779,121860.0,121850.0,1.09031132]
[1755161271330,0.36141779,121860.0,121850.0,0.53155345]
[1755161271725,0.34195148,121860.0,121850.0,0.43690345]
[1755161271929,1.21727199,121860.0,121850.0,0.01638]
[1755161272322,0.2378358,121840.0,121830.0,0.51902]
[1755161272529,0.2378358,121840.0,121830.0,0.61360228]
[1755161273234,0.2378358,121840.0,121830.0,0.6136055]
[1755161273633,0.2378358,121840.0,121830.0,0.5315629]
[1755161274533,0.2378358,121840.0,121830.0,0.6136055]
[1755161275334,0.2378358,121840.0,121830.0,0.5315629]
[1755161276031,0.25732973,121840.0,121830.0,0.5315629]
[1755161276232,0.7340587,121840.0,121830.0,0.53170673]
[1755161277533,0.7340587,121840.0,121830.0,0.37348673]
[1755161279128,0.7340587,121840.0,121830.0,0.42397673]
[1755161279335,0.75226118,121840.0,121830.0,0.50585673]
[1755161279535,0.75226118,121840.0,121830.0,0.52725673]
[1755161280235,0.75226118,121840.0,121830.0,0.60929873]
[1755161280437,0.75226118,121840.0,121830.0,0.52725673]
[1755161280631,0.27553221,121840.0,121830.0,0.52725673]
[1755161280826,0.75226118,121840.0,121830.0,0.52725673]
[1755161281337,0.27553221,121840.0,121830.0,0.52725673]
[1755161281541,0.75226118,121840.0,121830.0,0.52725673]
[1755161281740,1.11306118,121840.0,121830.0,0.10818673]
[1755161281939,1.11306118,121840.0,121830.0,0.0955]
[1755161282331,0.3782471,121830.0,121820.0,0.01654]
[1755161282531,0.89672862,121830.0,121820.0,0.13181657]
[1755161282839,0.89672862,121830.0,121820.0,0.16644657]
[1755161283432,0.87725607,121830.0,121820.0,0.16644657]
[1755161283632,0.87725607,121830.0,121820.0,0.16744657]
[1755161284235,0.89672469,121830.0,121820.0,0.16744657]
[1755161284438,0.89672163,121830.0,121820.0,0.05382657]
[1755161284736,0.87725607,121830.0,121820.0,0.11241657]
[1755161284930,0.89672198,121830.0,121820.0,0.11241657]
[1755161286138,0.89672198,121830.0,121820.0,0.11141657]
[1755161286841,0.89672198,121830.0,121820.0,0.1114093]
[1755161287040,0.89672198,121830.0,121820.0,0.1104093]
[1755161287641,0.41999301,121830.0,121820.0,0.1104093]
[1755161287841,0.89672198,121830.0,121820.0,0.1664393]
[1755161288437,0.89672198,121830.0,121820.0,0.2484885]
[1755161288730,0.89672198,121830.0,121820.0,0.2358192]
[1755161288937,0.41999301,121830.0,121820.0,0.2358192]
[1755161289240,0.41999301,121830.0,121820.0,0.15377]
[1755161290742,0.89672198,121830.0,121820.0,0.15377]
[1755161291843,0.87725607,121830.0,121820.0,0.15377]
[1755161292345,0.4005271,121830.0,121820.0,0.15377]
[1755161292739,0.87725607,121830.0,121820.0,0.15377]
[1755161293039,0.2364392,121820.0,121810.0,0.42235]
[1755161293240,0.71316817,121820.0,121810.0,0.39000668]
[1755161293639,0.71316817,121820.0,121810.0,0.37734]
[1755161293833,0.71316817,121820.0,121810.0,0.41129]
[1755161294041,0.71316817,121820.0,121810.0,0.45854]
[1755161294645,0.71316817,121820.0,121810.0,0.45954]
[1755161295046,0.71316817,121820.0,121810.0,0.46054]
[1755161295245,0.71316817,121820.0,121810.0,0.49517]
[1755161295445,0.71316817,121820.0,121810.0,0.13437]
[1755161295945,0.71316817,121820.0,121810.0,0.002]
[1755161296343,0.7317418,121820.0,121810.0,0.002]
[1755161297746,0.7317418,121820.0,121810.0,0.001]
[1755161298147,0.1438359,121810.0,121800.0,0.51457]
[1755161298347,0.2364459,121810.0,121800.0,0.5272438]
[1755161298851,0.2364459,121810.0,121800.0,0.6093064]
[1755161299652,0.2364459,121810.0,121800.0,0.5272438]
[1755161299850,0.2364459,121810.0,121800.0,0.6093064]
[1755161300240,0.1792159,121810.0,121800.0,0.6093064]
[1755161300446,0.0820559,121810.0,121800.0,0.6093064]
[1755161300648,0.1055859,121810.0,121800.0,0.6103064]
[1755161300848,0.2364459,121810.0,121800.0,0.6103064]
[1755161301254,0.2364459,121810.0,121800.0,0.6113064]
[1755161302052,0.2364459,121810.0,121800.0,0.3754738]
[1755161302256,0.2364459,121810.0,121800.0,0.6113065]
[1755161302557,0.2364459,121810.0,121800.0,0.5292438]
[1755161303758,0.2364459,121810.0,121800.0,0.6113065]
[1755161303953,0.1438359,121810.0,121800.0,0.6113065]
[1755161304153,0.2155259,121810.0,121800.0,0.6113065]
[1755161304650,0.1782159,121810.0,121800.0,0.6113065]
[1755161304856,0.2155259,121810.0,121800.0,0.6113065]
[1755161305154,0.50242703,121820.0,121810.0,0.15272]
[1755161305353,0.50242703,121820.0,121810.0,0.5261938]
[1755161306457,0.50242703,121820.0,121810.0,0.1653938]
[1755161306654,0.50242703,121820.0,121810.0,0.1093738]
[1755161306860,0.50242703,121820.0,121810.0,0.1653938]
[1755161307755,0.52257514,121820.0,121810.0,0.1653938]
[1755161310363,0.52257514,121820.0,121810.0,0.16541916]
[1755161310962,0.52257514,121820.0,121810.0,0.24747516]
[1755161311163,0.52257514,121820.0,121810.0,0.16541916]
[1755161311762,0.50400151,121820.0,121810.0,0.15272]
[1755161312666,0.98073048,121820.0,121810.0,0.15272]
[1755161313265,0.98073048,121820.0,121810.0,0.11736]
[1755161313663,0.98073048,121820.0,121810.0,0.15272]
[1755161314468,0.98073048,121820.0,121810.0,0.16541102]
[1755161315873,0.96058237,121820.0,121810.0,0.16541102]
[1755161316375,0.4838534,121820.0,121810.0,0.16541102]
[1755161316971,0.96058237,121820.0,121810.0,0.16541102]
[1755161317873,0.96058237,121820.0,121810.0,0.16540879]
[1755161318073,0.96058237,121820.0,121810.0,0.15272]
[1755161318578,0.96058237,121820.0,121810.0,0.16540844]
[1755161318579,0.98087717,121820.0,121810.0,0.16540844]
[1755161321479,0.98087717,121820.0,121810.0,0.15272]
[1755161322777,0.5041482,121820.0,121810.0,0.15272]
[1755161323075,0.5041482,121820.0,121810.0,0.11736]
[1755161323076,0.98087717,121820.0,121810.0,0.11736]
[1755161323283,0.98087717,121820.0,121810.0,0.07233]
[1755161323475,0.98087717,121820.0,121810.0,0.03838]
[1755161324281,0.98087717,121820.0,121810.0,0.01563]
[1755161325581,0.98087717,121820.0,121810.0,0.0944]
[1755161325881,0.98087717,121820.0,121810.0,0.16541093]
[1755161326078,0.98087717,121820.0,121810.0,0.15272]
[1755161326481,0.98087717,121820.0,121810.0,0.1654117]
[1755161327882,0.5041482,121820.0,121810.0,0.1654117]
[1755161328283,0.5041482,121820.0,121810.0,0.1079817]
[1755161328485,0.5041482,121820.0,121810.0,0.0510717]
[1755161328784,0.98087717,121820.0,121810.0,0.0126917]
[1755161330485,0.98087717,121820.0,121810.0,0.0510717]
[1755161330685,0.98087717,121820.0,121810.0,0.1070917]
[1755161330986,0.98087717,121820.0,121810.0,0.10709362]
[1755161331174,0.98087717,121820.0,121810.0,0.05107362]
[1755161331378,0.98087717,121820.0,121810.0,0.10709362]
[1755161331788,0.98087717,121820.0,121810.0,0.01269362]
[1755161333085,0.99911541,121820.0,121810.0,0.01269362]
[1755161333386,0.52238644,121820.0,121810.0,0.01269362]
[1755161333686,0.99911541,121820.0,121810.0,0.01269362]
[1755161333894,0.082056,121810.0,121800.0,0.3608]
[1755161334184,0.2521308,121810.0,121800.0,0.50550847]
[1755161334378,0.2521308,121810.0,121800.0,0.52872847]
[1755161334579,0.2521308,121810.0,121800.0,0.55198847]
[1755161334884,0.2521308,121810.0,121800.0,0.46992577]
[1755161335289,0.2521308,121810.0,121800.0,0.50381577]
[1755161335479,0.2521308,121810.0,121800.0,0.52696577]
[1755161335786,0.2521308,121810.0,121800.0,0.16616577]
[1755161336086,0.2521308,121810.0,121800.0,0.52696577]
[1755161336481,0.2521308,121810.0,121800.0,0.60902847]
[1755161336878,0.0202948,121810.0,121800.0,1.56259655]
[1755161337080,0.2521437,121830.0,121820.0,0.2345193]
[1755161337280,0.1701012,121830.0,121820.0,1.07204827]
[1755161337481,0.1701012,121830.0,121820.0,1.08485656]
[1755161337882,0.1701012,121830.0,121820.0,0.60812759]
[1755161338685,0.1701012,121830.0,121820.0,0.5953193]
[1755161338686,0.2531438,121830.0,121820.0,0.5953193]
[1755161339489,0.2531438,121830.0,121820.0,0.5963193]
[1755161339890,0.1711012,121830.0,121820.0,0.5963193]
[1755161340089,0.2531439,121830.0,121820.0,0.5963193]
[1755161340490,0.1701012,121830.0,121820.0,1.07404827]
[1755161341391,0.2521438,121830.0,121820.0,1.07404827]
[1755161341891,0.2318226,121830.0,121820.0,0.61011132]
[1755161342191,0.2318226,121830.0,121820.0,0.5973193]
[1755161342592,0.2318226,121830.0,121820.0,0.15447]
[1755161342790,1.08950924,121830.0,121820.0,0.002]
[1755161343687,0.1439629,121800.0,121790.0,0.5953396]
[1755161343887,0.2318429,121800.0,121790.0,0.52606376]
[1755161344186,0.2318429,121800.0,121790.0,0.60813336]
[1755161344578,0.2318429,121800.0,121790.0,0.5953396]
[1755161344780,0.70857187,121800.0,121790.0,0.37359431]
[1755161344985,0.70857187,121800.0,121790.0,0.0755776]
[1755161345189,0.70857187,121800.0,121790.0,0.1220576]
[1755161345488,0.2318429,121800.0,121790.0,0.1810976]
[1755161345890,0.2318429,121800.0,121790.0,0.1830976]
[1755161346291,0.2318429,121800.0,121790.0,0.5438976]
[1755161346691,0.25740239,121800.0,121790.0,0.5438976]
[1755161347179,0.25740239,121800.0,121790.0,0.1830976]
[1755161347883,0.25740239,121800.0,121790.0,0.1800976]
[1755161348079,0.25740239,121800.0,121790.0,0.1810976]
[1755161350592,0.25740239,121800.0,121790.0,0.18109821]
[1755161351792,1.09493136,121800.0,121790.0,0.02862821]
[1755161356295,1.01286846,121800.0,121790.0,0.19463791]
[1755161356502,0.25740239,121800.0,121790.0,0.62396791]
[1755161356897,0.25740239,121800.0,121790.0,0.26316791]
[1755161357603,0.25740239,121800.0,121790.0,0.62396791]
[1755161357998,0.25740239,121800.0,121790.0,0.26316791]
[1755161358499,0.25740239,121800.0,121790.0,0.62396791]
[1755161358700,0.25740239,121800.0,121790.0,0.61113456]
[1755161358901,0.25740239,121800.0,121790.0,0.25033456]
[1755161359398,0.25740239,121800.0,121790.0,0.2375397]
[1755161359600,0.25740239,121800.0,121790.0,0.25033174]
[1755161360695,0.25740239,121800.0,121790.0,0.61113174]
[1755161360895,0.25740239,121800.0,121790.0,0.25033174]
[1755161361604,0.25740239,121800.0,121790.0,0.61113174]
[1755161362104,0.25740239,121800.0,121790.0,0.25033174]
[1755161362899,0.25740239,121800.0,121790.0,0.16826204]
[1755161363505,0.25740239,121800.0,121790.0,0.25033194]
[1755161363804,0.73413136,121800.0,121790.0,0.25033194]
[1755161364503,1.09493136,121800.0,121790.0,0.0286259]
[1755161367907,1.09493136,121800.0,121790.0,0.1106958]
[1755161369503,1.09493136,121800.0,121790.0,0.2059758]
[1755161369703,1.09493136,121800.0,121790.0,0.2279258]
[1755161369906,0.25740239,121800.0,121790.0,0.2608258]
[1755161370711,0.73413136,121800.0,121790.0,0.24799194]
[1755161370906,1.09493136,121800.0,121790.0,0.24799194]
[1755161371106,1.09493136,121800.0,121790.0,0.17875607]
[1755161371410,1.09493136,121800.0,121790.0,0.16592204]
[1755161371613,1.09493136,121800.0,121790.0,0.24799194]
[1755161371810,1.11568863,121800.0,121790.0,0.24799194]
[1755161372012,1.11568863,121800.0,121790.0,0.16592204]
[1755161373217,1.11568863,121800.0,121790.0,0.17875609]
[1755161374214,1.11568863,121800.0,121790.0,0.16592204]
[1755161374610,1.11568863,121800.0,121790.0,0.03136204]
[1755161375014,0.75488863,121800.0,121790.0,0.15945194]
[1755161375318,0.75488863,121800.0,121790.0,0.24799194]
[1755161375917,0.27815966,121800.0,121790.0,0.24799194]
[1755161376123,0.75488863,121800.0,121790.0,0.24799194]
[1755161376317,1.11568863,121800.0,121790.0,0.08923204]
[1755161376619,1.11568863,121800.0,121790.0,0.03136204]